Workbook

Sheet Title
AA1: 19 | AB1: Baruch College | AC1: Manhattan
AB2: Bronx Community College | AC2: Bronx
AB3: Brooklyn College | AC3: Brooklyn
AB4: City College | AC4: Manhattan
AB5: CUNY Law | AC5: Queens
AB6: Graduate School and University Center | AC6: Manhattan
AB7: Hostos Community College | AC7: Bronx
AB8: Hunter College | AC8: Manhattan
AB9: John Jay College | AC9: Manhattan
AB10: Kingsborough Community College | AC10: Brooklyn
A11: CP Request Questionnaire | AB11: LaGuardia Community College | AC11: Queens
AB12: Lehman College | AC12: Bronx
AB13: Borough of Manhattan Community College | AC13: Manhattan
AB14: Medgar Evers College | AC14: Brooklyn
AB15: New York City Technical College | AC15: Brooklyn
A16: Responsible Agency: | C16: 42 | D16: City University of New York | AB16: Queensborough Community College | AC16: Queens
A17: Project Type: | C17: HN | D17: Higher Education | AB17: Queens College | AC17: Queens
AB18: College of Staten Island | AC18: Staten Island
A19: Project Title: | B19: York College IT Infrastructure and Instructional Space Technology Upgrades | AB19: York College | AC19: Queens
A20: Project ID: | B20: YC052-016 | AB20: CUNY Wide | AC20: CUNY Wide
A21: Budget Line(s): | AB21: Hunter Campus College Schools | AC21: Manhattan
A22: Amount: | B22: =+'Equipment Listing'!B17 -> 3996406.87
A24: College: | B24: =INDEX(AB1:AB21,AA1) -> York College
A25: Location: | B25: =INDEX(AC1:AC21, AA1) -> Queens
A28: Request Type:
F32: Network fiber optic cable & wireless network installation
A36: Is this an amendment?
A37: If Yes, what is the original CP number?
A50: Prepared by: | B50: Peter Tighe
A51: Agency: | B51: York College
A52: Title: | B52: CIO Information Technology York College
A53: Date: | B53: 2017-10-05

Sheet Justification & Scope
A1: =Title!B19 -> York College IT Infrastructure and Instructional Space Technology Upgrades | J1: =Title!B20 -> YC052-016
A3: Justification
B5: See PDF file "CP ID YC052-016_Attachment_1"
A7: Scope
B9: See PDF file "CP ID YC052-016_Attachment_1"

Sheet Equipment Purchase
A1: =Title!B19 -> York College IT Infrastructure and Instructional Space Technology Upgrades | L1: =Title!B20 -> YC052-016
A3: Equipment Purchase
A5: 01) | B5: List and describe the equipment being purchased.
B7: Item | D7: Description | H7: Qty | I7: Unit Price | J7: Subtotal
B8: 1 | D8: Network Distribution Closet Catalyst Switches | J8: ='Equipment Listing'!B4 -> 1492225.1
B9: 2 | D9: Network Data Center Core Nexus Switches | J9: ='Equipment Listing'!B5 -> 506983
B10: 3 | D10: Network Security and Management Utilities | J10: ='Equipment Listing'!B6 -> 152997.88
B11: 4 | D11: Data Center Hardware and Software | J11: ='Equipment Listing'!B7 -> 124351.8
B12: 5 | D12: Data Center Racks, KVM Console, UPS/Battery | J12: ='Equipment Listing'!B8 -> 20084.19
B13: 6 | D13: Intra-Building Network Fiber Cabling Upgrade | J13: ='Equipment Listing'!B9 -> 338812.68
B14: 7 | D14: Inter-Building Network Wireless | J14: ='Equipment Listing'!B10 -> 237183.1
B15: 8 | D15: Biology Department | J15: ='Equipment Listing'!B11 -> 149100
B16: 9 | D16: Chemistry Department | J16: ='Equipment Listing'!B12 -> 214480.8
B17: 10 | D17: Computer Science/Math Departments | J17: ='Equipment Listing'!B13 -> 241288.66
B18: 11 | D18: Foreign Languages | J18: ='Equipment Listing'!B14 -> 65640
B19: 12 | D19: Geology/EHS Department | J19: ='Equipment Listing'!B15 -> 38211
B20: 13 | D20: Physics: Digital Convergence & Robotics Lab | J20: ='Equipment Listing'!B16 -> 415048.66
B22: Total from separate sheet(s) | J22: 0
B24: Grand Total | J24: =SUM(J8:K23) -> 3996406.87
B26: Note: Different software packages need to be listed separately. Also provide the number of
B27: licenses or users for each software package. | G27: (See Equipment Listing Worksheet)
A29: 02) | B29: What is the purpose of the new equipment? Please explain.
A34: 03) | B34: What is the useful life of the equipment? (in years) | G34: 5 to 10
A36: 04) | B36: Are there similar existing equipment?
C38: Existing Network Switches are being replaced.We are also adding to our data center server complex to support new academic and administrative system requirements.
B40: If Yes, the existing equipment will be:
A44: 05) | B44: How will the equipment be purchased?
A48: 06) | B48: Are there installation costs?
C50: Installation services are contained in the quotes for the hardware and software items as needed. Fiber Optic cabling installation will be procured via NYS OGS or Federal GSA Contract, as will the Wireless Inter-Building network components and installation services.
A53: =Title!B19 -> York College IT Infrastructure and Instructional Space Technology Upgrades | L53: =Title!B20 -> YC052-016
A55: 07) | B55: Are peripheral equipment or other accessories required?
C57: All required hardware and software are contained in the Equipment Purchase List
A59: 08) | B59: Is construction required to install the new equipment?
B60: Cost of construction:
A64: 09) | B64: Are there other one time costs associated this request?
A68: 10) | B68: Are there new annual PS costs associated with this request?
A72: 11) | B72: Are there new annual OTPS costs associated with this request?
B73: (Maintenance, supplies, etc.)
C74: See Annual OTPS Worksheet for maintenance costs.
A76: 12) | B76: Are there cost savings in using the new equipment?
A80: 13) | B80: Provide the following dates:
C81: Order date ……………………. | F81: 2017-12-01
C82: Equipment on-site …………… | F82: 2017-01-01
C83: Installation …………………… | F83: 2018-01-15
C84: Ready for use ……………….. | F84: 2/1/2018-12/31/2018

Sheet Equipment Listing
A1: York College IT Infrastructure and Instructional Space Technology Upgrades
A3: Sumary of Equipment & Installation Services: | C3: Summary Total Cost
A4: Network Distribution Closet Catalyst Switches | B4: =J22+J24+J23 -> 1492225.1 | C4: Total for NET-1 items
A5: Network Data Center Core Nexus Switches | B5: =J25+J26 -> 506983 | C5: Total for NET-2 items
A6: Network Security and Management Utilities | B6: =SUM(J27:J31) -> 152997.88 | C6: Total for NET-3 to NET-5 items
A7: Data Center Hardware and Software | B7: =+J37+J38 -> 124351.8 | C7: Total for NET-9 and NET-10 items
A8: Data Center Racks, KVM Console, UPS/Battery | B8: =J36 -> 20084.19 | C8: Total for NET-8 item
A9: Intra-Building Network Fiber Cabling Upgrade | B9: =J32+J33 -> 338812.68 | C9: Total for NET-6 items
A10: Inter-Building Network Wireless | B10: =J34+J35 -> 237183.1 | C10: Total for NET-7 items
A11: Biology Department | B11: =J52 -> 149100 | C11: Total for all BIO items
A12: Chemistry Department | B12: =J66 -> 214480.8 | C12: Total for all CHEM items
A13: Computer Science/Math Departments | B13: =+J82 -> 241288.66 | C13: Total for all CSMATH items
A14: Foreign Languages | B14: =J89 -> 65640 | C14: Total for all FL items
A15: Geology/EHS Department | B15: =+J96 -> 38211 | C15: Total for all GEOENV items
A16: Physics: Digital Convergence & Robotics Lab | B16: =J117 -> 415048.66 | C16: Total for all PHY items
A17: Total Equipment &Services Purchases | B17: =SUM(B4:B16) -> 3996406.87
B20: IT Infrastructure: Campus Network and Data Center Upgrades
B21: Item | C21: Location1 | D21: Vendor | E21: Catalog | F21: Quote | G21: Description | H21: Qty | I21: Unit | J21: Total
B22: NET-1 | C22: All Campus Buildings (IDF Closets) | D22: Cisco | E22: x | F22: x | G22: Network Distribution Closet Catalyst Switches Racks and Cables | H22: 118 | I22: =J22/H22 -> 9860.805932 | J22: 1163575.1
B23: NET-1 | C23: All Campus Buildings (IDF Closets) | D23: Cisco | E23: n/a | F23: x | G23: Network Distribution Closet Catalyst Switch Installation (Days) | H23: 160 | I23: 1200 | J23: =H23*I23 -> 192000 | K23: 2
B24: NET-1 | C24: All Campus Buildings (IDF Closets) | D24: TBD | E24: x | F24: x | G24: Network Distribution Closet UPS & Battery Upgrades | H24: 30 | I24: 4555 | J24: 136650
B25: NET-2 | C25: AC-1H07 & AC-2E03C | D25: Cisco | E25: x | F25: x | G25: Network Core Nexus Switches | H25: 2 | I25: 223491.5 | J25: =H25*I25 -> 446983
B26: NET-2 | C26: AC-1H07 & AC-2E03C | D26: Cisco | E26: n/a | F26: x | G26: Network Core Nexus Switch Installation (Days) | H26: 50 | I26: 1200 | J26: 60000 | K26: 3
B27: NET-3 | C27: AC-2E03C | D27: Riverbed | E27: x | F27: x | G27: Network Management: Riverbed Sensor & Profiler with Analytics (Network Traffic Monitoring Appliance & Software) | H27: 1 | I27: 91988 | J27: =I27*H27 -> 91988
B28: NET-3 | C28: AC-2E03C | D28: Riverbed | E28: n/a | F28: x | G28: Network Management: Riverbed Sensor & Profiler with Analytics (Installation Services) | H28: 1 | I28: 13680 | J28: 12240 | K28: 4
B29: NET-4 | C29: AC-2E03C | D29: Gigamon | E29: x | F29: x | G29: Network Management: Gigamon HC2 Gnet (Network Security and Performance Appliance and Software) | H29: 1 | I29: =20642+8563.68+90 -> 29295.68 | J29: 29295.68
B30: NET-4 | C30: AC-2E03C | D30: Gigamon | E30: n/a | F30: x | G30: Network Management: Gigamon HC2 Gnet (Installation Services) | H30: 1 | I30: 1500 | J30: =H30*I30 -> 1500 | K30: 5
B31: NET-5 | C31: AC-2E03C | D31: Cisco | E31: x | F31: x | G31: Network Management: Cisco Identity Service Engine (Network Security Appliance & Software) | H31: 1 | I31: 17974.2 | J31: 17974.2
B32: NET-6 | C32: AC-IDF Closets and AC-2E03 to AC-1H07 | D32: TBD | E32: x | F32: x | G32: Intra-Building Network Fiber Cabling Upgrade Cables and Materials (IDF Closets & Datacenters) | H32: 21 | I32: 5049.26 | J32: 157848.68
B33: NET-6 | C33: AC-IDF Closets and AC-2E03 to AC-1H07 | D33: TBD | E33: n/a | F33: x | G33: Intra-Building Network Fiber Cabling Upgrade Installation (IDF Closets & Datacenters) | H33: 159.762 | I33: =127.26*8 -> 1018.08 | J33: 180964 | K33: 6
B34: NET-7 | C34: All Campus Buildings | D34: TBD | E34: x | F34: x | G34: Inter-Building Wireless Network (80Ghz) Equipment/Software | H34: 10 | I34: =197783.1/10 -> 19778.31 | J34: 197783.1
B35: NET-7 | C35: All Campus Buildings | D35: TBD | E35: n/a | F35: x | G35: Inter-Building Wireless Network (80Ghz) Installation | H35: 10 | I35: 3950 | J35: 39400 | K35: 7
B36: NET-8 | C36: AC-2E03C | D36: Dell | E36: x | F36: x | G36: Data Center Racks, KVM Console, UPS/Battery | H36: 1 | I36: 20084.19 | J36: 20084.19
B37: NET-9 | C37: AC-2E03C | D37: Dell | E37: x | F37: x | G37: Dell PowerEdge R740 Servers - Contract No: 70137 | H37: 3 | I37: =99178.4/4 -> 24794.6 | J37: 74383.8
B38: NET-10 | C38: AC-1H07 & AC-2E03C | D38: Dell | E38: x | F38: x | G38: Data Center Backup Software (VEEAM Server Licensing) | H38: 24 | I38: 2082 | J38: 49968
I39: Total Network and Data Center Capital | J39: =SUM(J22:J38) -> 2872637.75
C40: 1 | D40: AC - XXXX in the Location column stands for Academic Core Building (AC-) followed by the room number .
C41: 2 | D41: Installation Amount based on York College estimate of days required using NYS OGS Award 22802, Cisco Systems, Inc. listed daily rate. See Notes Worksheet for details.
C42: 3 | D42: Installation Amount based on York College estimate of days required using NYS OGS Award 22802, Cisco Systems, Inc. listed daily rate. See Notes Worksheet for details.
C43: 4 | D43: Installation Amount based on vendor estimate of days required using GSA Contract rates for planning, technical design, implementation, and Project Management Services. See Notes Worksheet for details.
C44: 5 | D44: Installation amount based on Product Vendor's standard installation per GSA Contract for Implementation Services. See Notes Worksheet for details.
C45: 6 | D45: Installation Amount based on vendor estimate of days required using NYS OGS rates for planning, technical design, implementation, and Project Management Services. See Notes Worksheet for details.
C46: 7 | D46: Installation amount based on NYS OGS equipment vendor quote citing industry standard rates and charges. See Notes Worksheet for details.
B48: Biology : Bioinformatics Laboratory
B49: Item | C49: Location1 | D49: Vendor | E49: Catalog | F49: Quote | G49: Description | H49: QTY | I49: Unit | J49: Total
B50: BIO-1 | C50: AC-1H07 & AC-2E03C | D50: Titanium | E50: x | F50: x | G50: High Performance 6 Server Cluster for Scientific Analysis** | H50: 6 | I50: 12350 | J50: =H50*I50 -> 74100 | K50: 8
B51: BIO-2 | C51: AC-4E02, AC4E03, AC4E04 | D51: Geneious R9 | E51: x | F51: x | G51: Bioinformatics Software (DNA Sequencing/Genome Mapping/Phylogenetic Analysis) Perpetual License | H51: 30 | I51: 2500 | J51: =H51*I51 -> 75000
I52: Total Biology Capital | J52: =SUM(J50:J51) -> 149100
C53: 1 | D53: AC - XXXX in the Location column stands for Academic Core Building (AC-) followed by the room number .
C54: 8 | D54: Servers and software will be installed in College's central Data Center facilities and accessed from instructional spaces via the College's Network.
B57: Chemistry : Organic Chemistry Laboratory and Pharmaceutical Sciences Laboratory
B58: Item | C58: Location1 | D58: Vendor | E58: Catalog | F58: Quote | G58: Decsription | H58: QTY | I58: Unit | J58: Total
B59: CHEM-1 | C59: AC-1H07 & AC-2E03C | D59: Dell | E59: x | F59: x | G59: Dell PowerEdge R830 Cluster | H59: 6 | I59: =121735.8/6 -> 20289.3 | J59: =H59*I59 -> 121735.8 | K59: 8
B60: CHEM-2 | C60: AC-3E02, AC3E03, AC3E05 | D60: Biovia - Materials Studios | E60: x | F60: x | G60: Base Software and Quantum Mechanics Module | H60: 1 | I60: 18600 | J60: =H60*I60 -> 18600
B61: CHEM-3 | C61: AC-3E02, AC3E03, AC3E06 | D61: Wavefunction | E61: x | F61: x | G61: Spartan '16 Molecular Mechanics Software | H61: 1 | I61: 15000 | J61: 16500
B62: CHEM-4 | C62: AC-3E02, AC3E03, AC3E07 | D62: Wave Metrics | E62: x | F62: x | G62: Igor Pro Software | H62: 25 | I62: 960 | J62: 20000
B63: CHEM-5 | C63: AC-3E02, AC3E03, AC3E08 | D63: Thermo Fisher | E63: x | F63: x | G63: GRAMS/AI Software | H63: 24 | I63: 320 | J63: 7680
B64: CHEM-6 | C64: AC-3E02, AC3E03, AC3E04 | D64: Matrix Science | E64: x | F64: x | G64: Data Analytics Software (2 CPU Lic. & Client SW) | H64: 25 | I64: 800 | J64: 20000
B65: CHEM-7 | C65: AC-3E02, AC3E03, AC3E09 | D65: OriginLab | E65: x | F65: x | G65: OriginPro Software | H65: 24 | I65: 420 | J65: 9965
I66: Total Chemistry Capital | J66: =SUM(J59:J65) -> 214480.8
C67: 1 | D67: AC - XXXX in the Location column stands for Academic Core Building (AC-) followed by the room number .
C68: 8 | D68: Servers and software will be installed in College's central Data Center facilities and accessed from instructional spaces via the College's Network.
B71: Computer Science/Mathematics/Information Systems Management: Data Center and Network Laboratory
B72: Item | C72: Location1 | D72: Vendor | E72: Catalog | F72: Quote | G72: Description | H72: QTY | I72: Unit | J72: Total
B73: CSMATH-1 | C73: AC-2E03A | D73: Dell | E73: x | F73: x | G73: Dell PowerEdge R740 Server Cluster (Computer Science) | H73: 3 | I73: =75388.26/3 -> 25129.42 | J73: =I73*H73 -> 75388.26
B74: CSMATH-2 | C74: AC-2E03A | D74: Dell | E74: x | F74: x | G74: Dell PowerEdge R740 Server Cluster (ISM Commercial Software Products) | H74: 3 | I74: =75388.26/3 -> 25129.42 | J74: 75388.26
B75: CSMATH-3 | C75: AC-2E03A | D75: Dell | E75: x | F75: x | G75: MD 3820i Disk Array (20TB) | H75: 1 | I75: 30000 | J75: 30000
B76: CSMATH-4 | C76: AC-2E03A | D76: Cisco | E76: x | F76: x | G76: 4331 Integrated Services Router | H76: 10 | I76: 2610 | J76: 26100
B77: CSMATH-5 | C77: AC-2E03A | D77: Cisco | E77: x | F77: x | G77: Catalyst 3650 Switches | H77: 3 | I77: 2494 | J77: 7482
B78: CSMATH-6 | C78: AC-2E03A | D78: Cisco | E78: x | F78: x | G78: 2504 Wireless Controller (5 AP Lics) | H78: 1 | I78: 751.1 | J78: 751.1
B79: CSMATH-7 | C79: AC-2E03A | D79: Cisco | E79: x | F79: x | G79: Wireless Access Points (AIR-CAP1702I-A-K9) | H79: 5 | I79: 403.1 | J79: 2015.5
B80: CSMATH-8 | C80: AC-2E03A | D80: Cisco | E80: x | F80: x | G80: Cisco Catalyst 3850 Switch (Lab Network) | H80: 2 | I80: 8120 | J80: 16240
B81: CSMATH-9 | C81: AC-2E03A | D81: Dell | E81: x | F81: x | G81: Cabinet with UPS | H81: 2 | I81: =7923.54/2 -> 3961.77 | J81: 7923.54
I82: Total Computer Science & Mathematics Capital | J82: =SUM(J73:J81) -> 241288.66
C83: 1 | D83: AC - XXXX in the Location column stands for Academic Core Building (AC-) followed by the room number .
B85: Foreign Languages: Language Laboratory (3)
B86: Item | C86: Location1 | D86: Vendor | E86: Catalog | F86: Quote | G86: Description | H86: QTY | I86: Unit | J86: Total
B87: FL1 | C87: AC-3D05 | D87: TBD | E87: x | F87: x | G87: Lecturer Audio/Video (Stationary) | H87: 2 | I87: 2820 | J87: =H87*I87 -> 5640
B88: FL2 | C88: AC-3D05 | D88: Dell | E88: x | F88: x | G88: 30 Student Workstation Lab (Stationary) | H88: 2 | I88: 30000 | J88: =H88*I88 -> 60000
I89: Total Foreign Languages Capital | J89: =SUM(J87:J88) -> 65640
C90: 1 | D90: AC - XXXX in the Location column stands for Academic Core Building (AC-) followed by the room number .
B92: Geology: Minerology and Enivironmental Heath & Safety Laboratory | H92: QTY | I92: Unit | J92: Total
B93: Item | C93: Location1 | D93: Vendor | E93: Catalog | F93: Quote | G93: Description | H93: QTY | I93: Unit | J93: Total
B94: GEOENV-1 | C94: AC-2E02 | D94: Spectro | E94: x | F94: x | G94: Thermo Scientific Niton X-Ray Fluorescence (XRF) Soil and Mining Analyzer | H94: 1 | I94: 36500 | J94: =H94*I94 -> 36500
B95: GEOENV-2 | C95: AC-2E02 | D95: Dell | E95: x | F95: x | G95: High Performance Workstation | H95: 1 | I95: 2000 | J95: 1711
I96: Total Geology Capital | J96: =+J94+J95 -> 38211
C97: 1 | D97: AC - XXXX in the Location column stands for Academic Core Building (AC-) followed by the room number .
B100: Physics: Digital Convergence & Computer Controlled Manufacturing Laboratory
B101: Item | C101: Location1 | D101: Vendor | E101: Catalog | F101: Quote | G101: Description | H101: QTY | I101: Unit | J101: Total
B102: PHY-1 | C102: AC-1H07 & AC-2E03C | D102: Dell | E102: x | F102: x | G102: Dell PowerEdge R740 Server Cluster | H102: 2 | I102: =50593.76/2 -> 25296.88 | J102: =H102*I102 -> 50593.76
D103: Allegheny | E103: x | F103: x | G103: Epilog Fusion40 75-Watt Laser Engraver with Fume Extractor | H103: 2 | I103: 50659 | J103: 101318
B104: PHY-3 | C104: PAC ???? | D104: Allegheny | E104: x | F104: x | G104: Techno 48” x 96” CNC Plasma Cutter with Powermax 85 Plasma (#HJPLSRM480996000B-PKG) | H104: 1 | I104: 35193 | J104: 35193
B105: PHY-4 | C105: AC-4G06 | D105: Allegheny | E105: x | F105: x | G105: Techno HD-II 48”x96” Stepper CNC outer Package with Vacuum Pump (#HD-4896) | H105: 1 | I105: 38745 | J105: 38745
B106: PHY-5 | C106: AC-4G06 | D106: Allegheny | E106: x | F106: x | G106: Techno HD-II Mini 21"x36" Tabletop CNC Router System with Safety Enclosure | H106: 1 | I106: 15877 | J106: 15877
B107: PHY-6 | C107: AC-4G06 | D107: Tyrrell Tech | E107: x | F107: x | G107: Roland Benchtop MDX-540A CNC Mill Package with Safety Cover (#MDX-540A-PKG) | H107: 1 | I107: 34438.9 | J107: 34438.9
B108: PHY-7 | C108: AC-4G06 | D108: Artec Eva | E108: x | F108: x | G108: Artec Eva and Spider 3D Scanners EDU Bundle | H108: 1 | I108: 28293 | J108: 28293
B109: PHY-8 | C109: AC-4G66 | D109: Pensa Labs | E109: x | F109: x | G109: DIWire Desktop Wire Bender EDU Bundle (#4D11332) | H109: 1 | I109: 5455 | J109: 5455
B110: PHY-9 | C110: AC-4G04 | D110: Flexible Assembly Systems | E110: x | F110: x | G110: Fanuc LR Mate 200iD/4S R-30iB CERT Package with 2D iRVision (#LRMATE-A/B-FL-PKG) | H110: 1 | I110: 52980 | J110: 49480
B111: PHY-10 | C111: AC-4G06 | D111: Rethink Robotics | E111: x | F111: x | G111: Baxter Research Robot (US) (#RB-Ret-01) | H111: 1 | I111: 40000 | J111: 40000
D112: Software
B113: PHY-11 | C113: AC-4M03 | D113: MasterCam | E113: x | F113: x | G113: Mastercam 5-User Network License (#MC-NH-5) | H113: 1 | I113: 6045 | J113: =I113*H113 -> 6045
B114: PHY-12 | C114: AC-4M03 | D114: Vectric | E114: x | F114: x | G114: Vectric Aspire (40-Seat EDU License) | H114: 1 | I114: 2010 | J114: =I114*H114 -> 2010
B115: PHY-13 | C115: AC-4M03 | D115: SolidWorks | E115: x | F115: x | G115: SolidWorks 2015-2016 Education Edition 30-User (#SEI0221-PKG) | H115: 1 | I115: 3600 | J115: 3600
C116: AC-4M03, AC- 4M07 | D116: Allegheny | E116: x | F116: x | G116: Implementation Services for items PHY-1 to PHY-13 | H116: 1 | I116: 4000 | J116: 4000 | K116: 8
I117: Total Physics Digital Convergence & Robotics Laboratory Capital | J117: =SUM(J102:J116) -> 415048.66
C118: 1 | D118: AC - XXXX in the Location column stands for Academic Core Building (AC-) followed by the room number, PAC - XXX in the Location column stands for Performing Arts Center followed by the room number,
C119: 8 | D119: Servers and software will be installed in College's central Data Center facilities and accessed from instructional spaces via the College's Network.

Sheet Notes
A2: NOTES: Equipment Listing
A4: Note #
A5: 1 | B5: AC - XXXX in the Location column stands for Academic Core Building (AC-) followed by the room number.
A8: 2 | B8: Installation cost of $192,000 for 118 Network Distribution Switches based on York estimate of 80 days work for a 2 person crew @ $1,200 a day per Network Engineer ($1,200 X 160).
B9: See NYS OGS Award 21350, Cisco Systems, Inc. Price List extract below. Actual costs will be determined through Competitive Bid at the time of purchase.
B10: For installation cost see Item NET-1 in document YC052-016_Attachment_2.
A12: 3 | B12: Installation cost of $60,000 for 2 Campus Network Core Switches based on York estimate of 50 workdays for 1 Network Engineer @ $1,200 per day ($1.200 X 50).
B13: See NYS OGS Award 22802 Contract PM20800 extract below. Actual costs will be determined through Competitive Bid at the time of purchase.
B14: For installation cost see Item NET-2 in document YC052-016_Attachment_2.
B15: Item Number | C15: Product Name | D15: Product Description | E15: Product Category | F15: Manufacturer Part Number (SKU) | G15: Bundled Part Number? | H15: Unit of Measure | I15: Units Per Unit of Measure | J15: List Price | K15: Minimum NYS Discount | L15: Optional Actual NYS Discount | M15: Net NYS Contract Price | N15: Optional Percent Educational Discount | O15: Optional Net NYS Educational Price
B16: 22 | C16: Installation and Implementation Services | E16: Advanced Daily Install | F16: Basic Install and Configuration | G16: PS-SNY-ADV | H16: No | I16: Each | J16: 1 | K16: 1200 | L16: 0 | M16: 1200 | N16: 0 | O16: 1200
A19: 4 | B19: Installation amount of $12,240 for Riverbed products based on vendor estimate of days required using NYS OGS Award 21350 Contract PT65085, (Reseller: Immix Technology) rates for Planning, Technical Design, and Implementation, and Project Management Services. See Riverbed Quote in attachment 2. Installation Cost Breakdown:
B21: For installation cost see Item NET-3 in document YC052-016_Attachment_2.
B22: Installation and Services | C22: Description | E22: Unit of Measure | F22: Standard Rate | G22: Quantity | H22: Ext. Cost | I22: Discount | J22: Discounted Cost
B23: SVC-PSD-00215 | C23: Planning, Technical Design, and Implementation | E23: Day | F23: 2400 | G23: 5 | H23: =F23*G23 -> 12000 | I23: 0.15 | J23: =H23*0.85 -> 10200
B24: SVC-PJM-00002 | C24: Project Management | E24: Hour | F24: 300 | G24: 8 | H24: =F24*G24 -> 2400 | I24: 0.15 | J24: =H24*0.85 -> 2040
B25: Total | H25: =+H23+H24 -> 14400 | J25: =+J23+J24 -> 12240
A28: 5 | B28: Installation amount of $1,500 for Gigamon products is based on Product Vendor's standard installation per GSA Contract GS-35-F-0119Y, SKU GPS*. See G-Net Solutions, Inc. Quote in Attachment 2.
B29: For installation cost see Item NET-4 in document YC052-016_Attachment_2.
A31: 6 | B31: Installation cost of $180,964 for Intra-Building fiber cabling from 25 Network IDF Closet fiber cables and 1 data center to data center fiber cable based on vendor estimate of 40 days work by 2 crews of 2 installers utilizing NYC Prevailing Wage Rate and Markup ($127.26 Hrly Rate X 1,422 Hrs) referencing NYS OGS Award 21350 Contract PT64257, Creative Cabling Solutions Inc. See Creative Cabling, Inc. Quote in Attachment2. Extract from vendor website below. Actual cost will be determined by Competitive Bid at the time of purchase.
B34: For installation cost see Item NET-6 in document YC052-016_Attachment_2.
B37: New York State Office of General Services
B38: Group 77018 RFP 21350 - Comprehensive Telecommunications Equipment & Solutions
B39: Attachment C - Bronx, Kings, New York, Queens & Richmond Counties
B40: Cost Tables
B41: Lot 3
B42: Network Cable & Fiber Optics
B43: Manufacturer: LABOR
B44: Part/Model Number (if applicable) | C44: Description | D44: Unit of Measure | E44: Category /Group (identifier if applicable) | F44: MSRP | G44: Percentage Discount | H44: NYS Net Price | I44: NYS One-Time Installation per U/M (Hr,Unit,etc) | J44: NYS Maintenance Cost per Month U/M (Hr, Unit, etc) | K44: Comperable Contract / Sale Price | L44: Comperable Contract / Sale One-Time Installation per U/M (Hr, Unit, etc) | M44: Comperable Contract / Sale Maintence Cost per Month per U/M (Hr,Unit,etc.)
C45: Prevailing Wage Electrician $47.00
C46: Supplemental Benefits + $37.84
C47: Subtotal $84.84
C48: Percentage Markup 50% + $42.42
C49: Contractor's Total Hourly Charge = $127.26
C50: to NYS for Electrician in Bronx, Kings,
B51: Labor ST2 | C51: New York, Queens & Richmond Counties | D51: HR | E51: Labor | H51: 127.26 | I51: N/A | J51: N/A | K51: N/A | L51: N/A | M51: N/A
A54: 7 | B54: Installation cost of for Inter-Building Wireless Network based on NYS OGS equipment vendor quote citing Industry Standard Rates for required installation and calibration activities, breakdown below. See ESS, Inc. Quote in Attachment 2. Actual cost will be determined through Competitive Bid at the time of Purchase.
B56: For installation cost see Item NET-7 in document YC052-016_Attachment_2.
B57: Installation Activity | E57: Daily Rate | F57: Crew Size | G57: Estimated Days | H57: Extended Cost
B58: Campus solution design, equipment ordering, equipment delivery, receiving, and inventory | E58: 1200 | F58: 1 | G58: 1.5 | H58: =E58*F58*G58 -> 1800
B59: Equipment Staging (RF frquency provisioning,software installation, firmware updates, and testing) | E59: 1200 | F59: 1 | G59: 2.5 | H59: =E59*F59*G59 -> 3000
B60: Microwave Dish Installations (Crew of 2 Antenna and Tower Specialists) | E60: =171.25*8 -> 1370 | F60: 2 | G60: 10 | H60: =E60*F60*G60 -> 27400
B61: Dish Alignment and Calibration (Crew of 2 RF Technicians) | E61: 1200 | F61: 2 | G61: 2.5 | H61: =E61*F61*G61 -> 6000
B62: Operational Testing as-built documentation | E62: 1200 | F62: 1 | G62: 1 | H62: =E62*F62*G62 -> 1200
B63: Total | H63: =SUM(H58:H62) -> 39400
A66: 8 | B66: Servers and software will be installed in College's central Data Center facilities and accessed from instructional spaces via the College's Network.
A68: 9 | B68: Implementation Service of $4,000 for hardware and software in Physics: Digital Convergence & Computer Controlled Manufacturing Laboratory is based on vendor's standard installation pricing and include all items included in this seccion
B70: For installation cost see Item PHY-13 in document YC052-016_Attachment_2.

Sheet Annual OTPS
A1: York College IT Infrastructure and Instructional Space Technology Upgrades
B4: Instructional Space Upgrades Annual Expense Costs
G6: Year 1 | H6: Year 2 | I6: Year 3 | J6: Year 4 | K6: Year 5 | L6: Total
F7: Total Biology Expense | G7: 2500 | H7: 3700 | I7: 31050 | J7: 1200 | K7: 1200 | L7: =SUM(G7:K7) -> 39650
F8: Total Chemistry Expense | L8: 0
F9: Total Computer Science & Mathematics Expense | G9: 7000 | H9: 7000 | I9: 7000 | J9: 20400 | K9: 20400 | L9: 61800
F10: Total Foreign Languages Expense | G10: 0 | H10: 0 | I10: 2700 | J10: 5150 | K10: 5150 | L10: 13000
F11: Total GeologyLab Expense | G11: 0 | H11: 0 | I11: 3500 | J11: 3500 | K11: 3500 | L11: 10500
F12: Physics Digital Convergence/Robotics Lab: Expense | G12: 9075 | H12: 27500 | I12: 37100 | J12: 27500 | K12: 37100 | L12: 138275
F13: Total Instructional Space Annual Expense | G13: =SUM(G7:G12) -> 18575 | H13: =SUM(H7:H12) -> 38200 | I13: 81350 | J13: 57750 | K13: 67350 | L13: 263225
B16: IT Network and Infrastructure Annual Expense Costs:
G17: Year 1 | H17: Year 2 | I17: Year 3 | J17: Year 4 | K17: Year 5 | L17: Total
F18: Net New Data Center Annual Expense | G18: 80000 | H18: 80000 | I18: 80000 | J18: 80000 | K18: 80000 | L18: =SUM(G18:K18) -> 400000
G21: Year 1 | H21: Year 2 | I21: Year 3 | J21: Year 4 | K21: Year 5 | L21: Total
F22: Grand Total Annual Expense Costs: | G22: =+G13+G18 -> 98575 | H22: =+H13+H18 -> 118200 | I22: 161350 | J22: 137750 | K22: 147350 | L22: 663225
